fUSD/lending_fUSD_20240526
["ID","MTS","AMOUNT","RATE_DAILY","PERIOD"]
[327963656,1716723033539,-300.0,0.00016332,2]
[327963657,1716723033549,-150.0,0.00016335,2]
[327963658,1716723033558,-150.0,0.00016337,2]
[327963659,1716723033568,-150.0,0.0001634,2]
[327963660,1716723033579,-150.0,0.00016365,2]
[327963661,1716723033589,-150.0,0.00016367,2]
[327963662,1716723033599,-150.0,0.00016369,2]
[327963663,1716723033608,-150.0,0.00016371,2]
[327963664,1716723033618,-150.0,0.00016379,2]
[327963665,1716723033628,-172.25,0.0001643,2]
[327963666,1716723033641,-580.04,0.00016712,2]
[327963667,1716723033652,-1494.74172377,0.00017024,2]
[327963668,1716723033663,-207.475,0.00017141,2]
[327963669,1716723033673,-1926.83,0.00017622,2]
[327963670,1716723033683,-555.28,0.00017627,2]
[327963671,1716723033693,-492.40044,0.0001791,2]
[327963672,1716723033703,-804.42407721,0.00018,2]
[327963673,1716723033714,-580.04,0.00018569,2]
[327963674,1716723033724,-525.07,0.00018889,20]
[327963675,1716723033734,-276.0,0.00019,2]
[327963676,1716723033744,-1494.74172377,0.00019188,2]
[327963677,1716723033753,-1000.0,0.000192,3]
[327963678,1716723033763,-166.15,0.00019704,2]
[327963679,1716723033773,-555.28,0.0001989,2]
[327963680,1716723033784,-607.35684154,0.0002,2]
[327963681,1716723033794,-844.84991169,0.0002,2]
[327963682,1716723033805,-2190.60319814,0.0002,2]
[327963683,1716723033815,-150.0,0.0002,2]
[327963684,1716723033826,-150.0,0.00020039,2]
[327963685,1716723033835,-150.0,0.00020141,2]
[327963686,1716723033845,-1926.83,0.00020361,2]
[327963687,1716723033854,-492.40044,0.0002041,2]
[327963688,1716723033864,-580.04,0.00020426,2]
[327963689,1716723033875,-1000.0,0.00021,2]
[327963690,1716723033885,-1000.0,0.00021,3]
[327963691,1716723033895,-1494.74172377,0.00021353,2]
[327963692,1716723033907,-207.71,0.0002143,2]
[327963693,1716723033918,-300.75,0.0002143,2]
[327963694,1716723033928,-195.07618324,0.000219,2]
[327963695,1716723033939,-167.29,0.00021918,2]
[327963696,1716723033951,-163.18099659,0.00021965,2]
[327963697,1716723033961,-369356.43084665,0.00021975,2]
[327963698,1716723033976,-67469.00000008,0.00021975,2]
[327963699,1716723033990,-26541.74878227,0.00021975,2]
[327963700,1716723034003,-602.3126169,0.00021975,2]
[327963701,1716723034050,-4799.4,0.00021975,2]
[327963702,1716723034062,-9076.35471616,0.00021975,2]
[327963703,1716723034075,-3410.39593815,0.00021975,2]
[327963704,1716723034087,-1280.56006859,0.00021975,2]
[327963705,1716723034100,-8238.61441017,0.00021975,2]
[327963706,1716723034114,-12049.53630709,0.00021975,2]
[327963707,1716723034128,-2001.76069057,0.00021975,2]
[327963708,1716723038035,-544.0,0.00017141,2]
[327963709,1716723038046,-526.89515525,0.00021975,2]
[327963710,1716723038058,-15550.4733312,0.00021975,2]
[327963711,1716723038218,-10744.67429,0.00021975,2]
[327963712,1716723038232,-12473.45244837,0.00021975,2]
[327963713,1716723038242,-1000.0,0.00022,5]
[327963714,1716723038252,-1000.0,0.00022,3]
[327963715,1716723038263,-555.28,0.00022154,2]
[327963716,1716723038274,-160.0,0.00022238,2]
[327963717,1716723038284,-421.16,0.00022268,2]
[327963718,1716723038294,-188.77,0.00022277,2]
[327963719,1716723038304,-580.04,0.00022283,2]
[327963720,1716723038315,-182.49,0.00022296,2]
[327963721,1716723038325,-160.08449886,0.00022416,2]
[327963722,1716723038336,-166.07085496,0.0002247,2]
[327963723,1716723038346,-156.41933492,0.00022696,2]
[327963724,1716723038356,-492.40044,0.0002291,2]
[327963725,1716723038366,-1000.0,0.00023,2]
[327963726,1716723038376,-1000.0,0.00023,3]
[327963727,1716723038387,-160.08449886,0.00023071,2]
[327963728,1716723038398,-160.04389286,0.00023136,2]
[327963729,1716723038409,-152.05,0.00023435,2]
[327963730,1716723038419,-1494.74172377,0.00023517,2]
[327963731,1716723038430,-1000.0,0.00024,5]
[327963732,1716723038441,-495.0,0.00024,3]
[327963733,1716723038451,-555.28,0.00024418,2]
[327963734,1716723038462,-300.64,0.00024607,2]
[327963735,1716723038472,-870.67,0.00024795,2]
[327963736,1716723038482,-831.4,0.00024795,2]
[327963737,1716723038493,-870.67,0.00024795,2]
[327963738,1716723038504,-634.40170362,0.00024798,2]
[327963746,1716723041411,-544.0,0.00020141,2]
[327963747,1716723041421,-567.0,0.00020141,2]
[327963748,1716723041431,-19.54686907,0.00023141,2]
[327963750,1716723041445,-524.45313093,0.00023141,2]
[327963752,1716723041455,-6314.11966997,0.00024798,2]
[327963753,1716723041466,-963.96545382,0.00024799,2]
[327963754,1716723041476,-3226.62212645,0.00024889,2]
[327963757,1716723042839,-930.0,0.00024889,2]
[327963779,1716723043969,-2989.63675428,0.00024889,2]
[327963781,1716723043981,-7146.25888072,0.00024889,2]
[327963783,1716723043993,-7146.25888072,0.00024889,2]
[327963785,1716723044003,-15132.55022276,0.00024898,2]
[327963787,1716723044012,-8326.2562324,0.00024898,2]
[327963796,1716723044568,-1976.46016972,0.00024898,2]
[327963797,1716723044584,-563.5647439,0.00024898,2]
[327963798,1716723044643,-4266.26907669,0.00024898,2]
[327963799,1716723044654,-1361.74175881,0.00024898,2]
[327963800,1716723044668,-13770.8084639,0.00024898,2]
[327963801,1716723044679,-5000.0,0.00025,7]
[327963802,1716723044689,-1000.0,0.00025,2]
[327963803,1716723044700,-663.50247508,0.00025,2]
[327963804,1716723044711,-500.0,0.00025,2]
[327963805,1716723044722,-158.77187346,0.00025,2]
[327963806,1716723044734,-337.83654728,0.00025,7]
[327963807,1716723044745,-1529.94595031,0.00025328,7]
[327963808,1716723044758,-2188.32089407,0.00025328,7]
[327963809,1716723044771,-2180.33404546,0.00025328,7]
[327963810,1716723044782,-150.0,0.00025352,2]
[327963811,1716723044793,-492.40044,0.0002541,2]
[327963812,1716723044803,-1494.74172377,0.00025681,2]
[327963813,1716723044814,-444.0,0.00025695,2]
[327963814,1716723044824,-162.57604038,0.00025708,2]
[327963815,1716723044842,-7496.37954056,0.00025708,2]
[327963816,1716723044855,-7473.59464177,0.00025708,2]
[327963817,1716723044865,-434.78782414,0.00026,5]
[327963818,1716723045940,-7146.25888072,0.00025617,2]
[327963820,1716723045951,-10998.47548241,0.00026,5]
[327963822,1716723045961,-544.0,0.00026141,2]
[327963823,1716723045971,-567.0,0.00026141,2]
[327963824,1716723045980,-160.17758889,0.0002619,2]
[327963825,1716723045993,-524.45,0.00026312,2]
[327963826,1716723046004,-421.08,0.00026312,2]
[327963827,1716723046013,-163.6,0.00026312,2]
[327963828,1716723046024,-150.0,0.00026312,2]
[327963829,1716723046034,-444.0,0.00026409,2]
[327963830,1716723046044,-150.0,0.00026433,2]
[327963831,1716723046054,-150.0,0.00026449,2]
[327963832,1716723046063,-150.0,0.00026477,2]
[327963833,1716723046073,-150.0,0.00026482,2]
[327963834,1716723046084,-150.0,0.00026501,2]
[327963835,1716723046094,-150.0,0.0002651,2]
[327963836,1716723046104,-158.53620513,0.00026546,7]
[327963837,1716723046115,-150.0,0.00026568,2]
[327963838,1716723046125,-500.0,0.00026575,2]
[327963839,1716723046136,-500.0,0.00026575,2]
[327963840,1716723046146,-500.0,0.00026575,2]
[327963841,1716723046156,-253.27006575,0.00026575,2]
[327963842,1716723046166,-150.0,0.00026673,2]
[327963843,1716723046176,-555.28,0.00026682,2]
[327963844,1716723046186,-150.0,0.00026687,2]
[327963845,1716723046196,-150.0,0.00026706,2]
[327963846,1716723046206,-150.0,0.0002683,2]
[327963847,1716723046216,-150.0,0.00026867,2]
[327963848,1716723046225,-150.0,0.00026909,2]
[327963849,1716723046235,-150.0,0.00026934,2]
[327963850,1716723046245,-150.0,0.00026957,2]
[327963851,1716723046254,-150.94,0.00026967,2]
[327963852,1716723046264,-6940.8959591,0.00026977,2]
[327963853,1716723046277,-5240.36169399,0.00026977,2]
[327963854,1716723046288,-422.99517772,0.00026977,2]
[327963855,1716723046300,-2099.01616,0.00026977,2]
[327963856,1716723046922,-337.08969517,0.00026977,2]
[327963858,1716723046961,-92.19153673,0.00026977,2]
[327963859,1716723046971,-150.0,0.00026982,2]
[327963860,1716723046980,-164802.79282244,0.00027,2]
[327963861,1716723046991,-1000.0,0.00027,7]
[327963862,1716723047002,-150.0,0.0002704,2]
[327963863,1716723047012,-444.0,0.00027123,2]
[327963864,1716723047021,-150.0,0.00027166,2]
[327963865,1716723047031,-150.0,0.00027272,2]
[327963866,1716723047041,-10000.0,0.00027297,2]
[327963867,1716723047051,-1000.0,0.00027297,2]
[327963868,1716723047060,-7500.0,0.00027297,2]
[327963869,1716723047069,-1973.75464627,0.00027297,2]
[327963870,1716723047080,-6250.0,0.000273,4]
[327963871,1716723047091,-49808.54670061,0.00027394,2]
[327963872,1716723047100,-17005.01599837,0.00027397,9]
[327963873,1716723047213,-719.95798759,0.00027397,9]
[327963874,1716723054168,554.44357385,0.00012941,2]
[327963875,1716723065458,156.07914669,0.00012941,2]
[327963879,1716723225345,6946002.16393042,0.00013,2]
[327963887,1716723269379,7149.36484316,6.94e-05,2]
[327963909,1716723424120,200.0,0.00016438,7]
[327963946,1716724232244,-155.0,0.00012895,2]
[327963947,1716724232254,-364.60298157,0.00012896,2]
[327963948,1716724232264,-150.0,0.00012899,2]
[327963949,1716724232274,-150.0,0.00012899,2]
[327963950,1716724232283,-2600.1843,0.000129,2]
[327963952,1716724232296,-1000.0,0.000129,2]
[327963954,1716724232305,-296.69104806,0.00012973,2]
[327963955,1716724232316,-150.94,0.0001299,2]
[327963956,1716724232326,-441.68283259,0.00012998,2]
[327963957,1716724232336,-725.55319353,0.00012998,2]
[327963958,1716724232346,-468.80737635,0.00012998,2]
[327963959,1716724232356,-525.43758344,0.00012998,2]
[327963960,1716724232368,-1231.85132041,0.00012998,2]
[327963961,1716724232381,-311.84172578,0.00012998,2]
[327963962,1716724232393,-30.27650328,0.00012998,2]
[327963963,1716724232402,-1615.48076253,0.00012999,2]
[327963964,1716724232412,-5418.89515158,0.00013,2]
[327963965,1716724232423,-4867.66072148,0.00013,2]
[327963966,1716724232435,-6127.228,0.00013,2]
[327963967,1716724232448,-4822.69,0.00013,2]
[327963968,1716724232465,-410255.78647992,0.00013,2]
[327963969,1716724232507,-6075.0,0.00013,2]
[327963970,1716724232519,-700.0,0.00013,2]
[327963971,1716724232531,-656.57318098,0.00013,2]
[327963972,1716724232556,-60679.77808117,0.00013,2]
[327963973,1716724232567,-1059.08000022,0.00013,2]
[327963974,1716724232578,-1094.72364763,0.00013,2]
[327963975,1716724232594,-810.12234657,0.00013,2]
[327963976,1716724232627,-550.46035353,0.00013,2]
[327963977,1716724237795,-255.90861087,0.00013,2]
[327963978,1716724237858,-3804.36369245,0.00013,2]
[327963979,1716724237870,-13637.3,0.00013,2]
[327963980,1716724237923,-986.26889205,0.00013,2]
[327963981,1716724237990,-403.80780873,0.00013,2]
[327963982,1716724238002,-33766.04762335,0.00013,2]
[327963983,1716724238013,-133339.33068938,0.00013,2]
[327963984,1716724238055,-15583.09126087,0.00013,2]
[327963985,1716724238135,-3595.30944684,0.00013,2]
[327963988,1716724240457,-3174.82,0.00013,2]
[327963989,1716724240911,-17259.97317901,0.00013,2]
[327963990,1716724241085,-26465.58546432,0.00013,2]
[327963991,1716724241096,-39125.61,0.00013,2]
[327963995,1716724243285,-1258.95221095,0.00013,2]
[327963996,1716724243858,-357.00000003,0.00013,2]
[327963998,1716724243870,-345.30254868,0.00013,2]
[327964000,1716724243882,-2281118.09320743,0.00013,2]
[327964002,1716724243891,-624.24378634,0.00013073,2]
[327964004,1716724243901,-195.92344363,0.00013073,2]
[327964006,1716724243910,-318.65153041,0.00013073,2]
[327964008,1716724243919,-186.84271548,0.00013173,2]
[327964010,1716724243928,-499.99,0.00013173,2]
[327964012,1716724243937,-1809.27509246,0.00013673,2]
[327964014,1716724243946,-152.05,0.00013973,2]
[327964016,1716724243955,-152.07,0.00013973,2]
[327964018,1716724243964,-199.62,0.00014919,2]
[327964020,1716724243973,-2089.0,0.00015,2]
[327964021,1716724243982,-1809.27509241,0.00015478,2]
[327964023,1716724243991,-186.84271547,0.00015563,2]
[327964025,1716724244001,-1021.39298623,0.00016109,2]
[327964027,1716724244010,-439.65,0.00016353,2]
[327964029,1716724244019,-1040.06495545,0.00016438,2]
[327964031,1716724244028,-544.0,0.00017141,2]
[327964033,1716724244037,-578.296,0.00017141,2]
[327964035,1716724244046,-202.0,0.00017141,2]
[327964037,1716724244055,-1809.27509241,0.00017282,2]
[327964039,1716724244064,-186.84271547,0.00017952,2]
[327964041,1716724244073,-23900.0,0.00018276,2]
[327964043,1716724244082,-250.0,0.0001838,2]
[327964045,1716724244091,-433.01,0.00018423,2]
[327964047,1716724244101,-2331.91,0.00018486,2]
[327964049,1716724244110,-250.0,0.00018556,2]
[327964050,1716724244119,-439.65,0.00018616,2]
[327964051,1716724244128,-272.0,0.0001874,2]
[327964052,1716724244138,-156.95,0.00018854,2]
[327964053,1716724244147,-156.95,0.00018977,2]
[327964054,1716724244156,-1001.0,0.00019,2]
[327964055,1716724244166,-1809.27509241,0.00019087,2]
[327964056,1716724244175,-156.95,0.00019099,2]
[327964057,1716724244184,-156.95,0.00019222,2]
[327964058,1716724244193,-156.95,0.00019345,2]
[327964059,1716724244203,-156.95,0.00019468,2]
[327964060,1716724244213,-468.2,0.000195,2]
[327964061,1716724244226,-361.51,0.000195,2]
[327964062,1716724244235,-167.84,0.0001959,2]
[327964063,1716724244245,-156.95,0.0001959,2]
[327964064,1716724244254,-166.0,0.00019705,15]
[327964065,1716724244264,-165.45,0.00019705,15]
[327964066,1716724244273,-156.95,0.00019713,2]
[327964067,1716724244283,-150.5,0.00019715,15]
[327964068,1716724244292,-150.5,0.00019715,15]
[327964069,1716724244305,-156.95,0.00019836,2]
[327964070,1716724244315,-1460.40213209,0.0002,2]
[327964071,1716724244324,-172.25,0.00020139,2]
[327964072,1716724244334,-544.0,0.00020141,2]
[327964073,1716724244346,-499.0,0.00020141,2]
[327964074,1716724244356,-202.0,0.00020141,2]
[327964075,1716724244366,-186.84271547,0.00020342,2]
[327964076,1716724244377,-2894.92,0.00020467,2]
[327964077,1716724244387,-2894.92,0.00020473,2]
[327964078,1716724244396,-2894.92,0.00020478,2]
[327964079,1716724244406,-2894.92,0.00020484,2]
[327964080,1716724244416,-2894.92,0.00020489,2]
[327964081,1716724244425,-2894.92,0.00020494,2]
[327964082,1716724244434,-2894.92,0.000205,2]
[327964083,1716724244443,-2894.92,0.00020505,2]
[327964084,1716724244452,-2894.92,0.00020511,2]
[327964085,1716724244461,-2894.92,0.00020516,2]
[327964086,1716724244470,-2894.92,0.00020521,2]
[327964087,1716724244479,-2894.92,0.00020527,2]
[327964088,1716724244488,-2894.92,0.00020532,2]
[327964089,1716724244497,-2894.92,0.00020538,2]
[327964090,1716724244507,-2894.92,0.00020543,2]
[327964092,1716724244518,-2894.92,0.00020548,2]
[327964094,1716724244528,-2894.92,0.00020554,2]
[327964095,1716724244538,-2894.92,0.00020559,2]
[327964096,1716724244548,-2894.92,0.00020565,2]
[327964097,1716724244559,-2894.92,0.0002057,2]
[327964098,1716724244570,-439.65,0.0002088,2]
[327964099,1716724244579,-1809.27509241,0.00020892,2]
[327964100,1716724244589,-272.0,0.00021083,2]
[327964101,1716724244598,-433.01,0.00021163,2]
[327964102,1716724244608,-196.04959916,0.00021755,2]
[327964103,1716724244618,-468.2,0.000218,2]
[327964104,1716724244627,-361.51,0.000218,2]
[327964105,1716724244637,-2000.83899828,0.00021873,2]
[327964106,1716724244647,-801.92288812,0.00021873,2]
[327964107,1716724244656,-427.02692627,0.00021873,2]
[327964108,1716724244666,-5900.0,0.00021873,7]
[327964109,1716724244675,-2396.43407872,0.00021873,2]
[327964110,1716724244685,-707.19968745,0.00021874,2]
[327964111,1716724244695,-3286.97999917,0.00021874,2]
[327964112,1716724244705,-155.94445731,0.00021874,2]
[327964113,1716724244716,-408.52002494,0.00021874,2]
[327964114,1716724244725,-161.73963544,0.00021874,2]
[327964115,1716724244735,-65646.05179866,0.00021875,2]
[327964116,1716724244747,-843.118017,0.00021875,2]
[327964117,1716724244758,-628.18,0.00021875,2]
[327964118,1716724244770,-5155.28596284,0.00021875,2]
[327964155,1716724246243,-796.27721884,0.00012999,2]
[327964244,1716725432537,-263.47322908,0.00012121,2]
[327964245,1716725432593,-9100.19353499,0.00012121,2]
[327964246,1716725432702,-339.21976022,0.00012121,2]
[327964247,1716725432714,-832.90186293,0.00012121,2]
[327964248,1716725432723,-150.0,0.00012183,2]
[327964249,1716725432733,-4281.53119452,0.00012247,2]
[327964250,1716725432742,-2980.88558954,0.00012248,2]
[327964251,1716725432752,-253.58312312,0.00012504,2]
[327964252,1716725432762,-155.06,0.00013973,2]
[327964253,1716725432774,-1040.06495545,0.00014,2]
[327964254,1716725432784,-760.0,0.00015,2]
[327964255,1716725432793,-2920.04732138,0.00016676,2]
[327964256,1716725432804,-544.0,0.00017141,2]
[327964257,1716725432814,-522.0,0.00017141,2]
[327964259,1716725432824,-225.74864792,0.00017259,2]
[327964261,1716725432834,-154.91,0.0001999,15]
[327964262,1716725432844,-875.77018932,0.0002,2]
[327964263,1716725432862,-341.23158742,0.0002,2]
[327964264,1716725432871,-544.0,0.00020141,2]
[327964265,1716725432881,-38.45966121,0.00020141,2]
[327964266,1716725432892,-483.54033879,0.00020141,2]
[327964267,1716725432902,-156.83967933,0.00021755,2]
[327964268,1716725432912,-512.5345,0.00021775,2]
[327964269,1716725432921,-50.72389252,0.00021874,2]
[327964270,1716725432940,-167.96,0.00019334,2]
[327964271,1716725432950,-104.84900748,0.00021874,2]
[327964272,1716725432959,-288.16320386,0.00021874,2]
[327964273,1716725438341,-211.82679614,0.00021874,2]
[327964274,1716725438350,-173.78398183,0.00021874,2]
[327964275,1716725438362,-303.39147441,0.00021874,2]
[327964276,1716725438501,-22.82454376,0.00021874,2]
[327964277,1716725438510,-500.0,0.00021874,2]
[327964278,1716725438520,-160.17758889,0.0002237,2]
[327964279,1716725438529,-411.38,0.0002257,2]
[327964280,1716725438538,-160.08449886,0.00022753,2]
[327964281,1716725438547,-202.0,0.00023141,2]
[327964282,1716725438557,-544.0,0.00023141,2]
[327964283,1716725438566,-522.0,0.00023141,2]
[327964284,1716725438575,-159.90920327,0.00023538,2]
[327964285,1716725438586,-250.0,0.00024316,2]
[327964286,1716725438596,-163.2,0.00024319,2]
[327964287,1716725438606,-215.5,0.00024394,2]
[327964289,1716725438616,-4736.54048522,0.000244,2]
[327964452,1716725440615,-371.89402556,0.000244,2]
[327964453,1716725440626,-444.19462883,0.000244,2]
[327964454,1716725441095,-1655.8,0.000244,2]
[327964466,1716725444062,-16691.57086039,0.000244,2]
[327964469,1716725444163,-167.29,0.00024425,2]
[327964471,1716725444280,-207.437446,0.00024437,2]
[327964473,1716725444415,-500.0,0.00024437,2]
[327964476,1716725444495,-160.08449887,0.00024463,2]
[327964479,1716725444553,-1350.74,0.00024468,2]
[327964482,1716725444563,-160.36,0.00024494,2]
[327964484,1716725444573,-1226.0,0.000246,2]
[327964486,1716725444582,-411.38,0.00024834,2]
[327964487,1716725444591,-5000.0,0.00025,7]
[327964489,1716725444601,-150.0,0.00025134,2]
[327964492,1716725444615,-152.05,0.00025156,2]
[327964494,1716725444625,-1207.03353451,0.00025328,7]
[327964497,1716725444635,-12003.24557288,0.00026,5]
[327964499,1716725444644,-150.0,0.00026091,2]
[327964502,1716725444654,-150.0,0.00026091,2]
[327964504,1716725444666,-150.0,0.00026091,2]
[327964507,1716725444687,-150.0,0.00026091,2]
[327964509,1716725444698,-150.0,0.00026091,2]
[327964510,1716725444708,-150.0,0.00026091,2]
[327964511,1716725444717,-150.0,0.00026091,2]
[327964512,1716725444727,-202.0,0.00026141,2]
[327964513,1716725444741,-544.0,0.00026141,2]
[327964514,1716725444757,-522.0,0.00026141,2]
[327964515,1716725444768,-800.0,0.00026274,2]
[327964516,1716725444781,-156.66024349,0.00026521,2]
[327964517,1716725444791,-150.0,0.00026638,2]
[327964518,1716725444801,-1740.02,0.00026887,2]
[327964519,1716725444811,-4801.04038588,0.00027,3]
[327964520,1716725444822,-150.0,0.00027024,2]
[327964521,1716725444832,-150.0,0.00027035,2]
[327964522,1716725444841,-150.0,0.00027043,2]
[327964523,1716725444852,-150.0,0.00027044,2]
[327964524,1716725444863,-150.0,0.00027047,2]
[327964525,1716725444873,-150.0,0.00027049,2]
[327964526,1716725444883,-150.0,0.0002705,2]
[327964527,1716725444892,-150.0,0.00027057,2]
[327964528,1716725444902,-150.0,0.00027073,2]
[327964529,1716725444911,-150.0,0.00027077,2]
[327964530,1716725444921,-150.0,0.00027079,2]
[327964531,1716725444931,-150.0,0.00027082,2]
[327964532,1716725444941,-150.0,0.00027091,2]
[327964533,1716725444951,-150.0,0.00027097,2]
[327964535,1716725444961,-150.0,0.00027097,2]
[327964537,1716725444971,-411.38,0.00027098,2]
[327964539,1716725444981,-150.0,0.00027102,2]
[327964541,1716725444991,-164.52176789,0.00027105,2]
[327964543,1716725445000,-150.0,0.00027112,2]
[327964544,1716725445010,-150.0,0.00027112,2]
[327964545,1716725445020,-150.0,0.00027117,2]
[327964546,1716725445030,-150.0,0.00027122,2]
[327964547,1716725445039,-150.0,0.00027126,2]
[327964548,1716725445049,-150.0,0.00027137,2]
[327964549,1716725445059,-150.0,0.00027138,2]
[327964550,1716725445068,-150.0,0.00027147,2]
[327964551,1716725445078,-150.0,0.00027148,2]
[327964552,1716725445087,-150.0,0.00027154,2]
[327964553,1716725445098,-150.0,0.00027176,2]
[327964555,1716725445108,-150.0,0.00027179,2]
[327964557,1716725445118,-150.0,0.00027182,2]
[327964559,1716725445127,-7566.2751114,0.00027195,2]
[327964562,1716725445138,-5816.99149143,0.00027195,2]
[327964563,1716725445147,-150.0,0.00027201,2]
[327964564,1716725445157,-150.0,0.00027203,2]
[327964565,1716725445167,-150.0,0.0002721,2]
[327964566,1716725445178,-150.0,0.00027219,2]
[327964567,1716725445188,-300.0,0.00027222,2]
[327964568,1716725445198,-150.0,0.00027233,2]
[327964569,1716725445208,-150.0,0.00027249,2]
[327964570,1716725445218,-150.0,0.0002725,2]
[327964571,1716725445228,-150.0,0.0002726,2]
[327964572,1716725445238,-150.0,0.00027262,2]
[327964573,1716725445248,-150.0,0.00027264,2]
[327964574,1716725445259,-150.0,0.00027264,2]
[327964575,1716725445270,-150.0,0.00027267,2]
[327964576,1716725445279,-150.0,0.0002727,2]
[327964577,1716725445289,-150.0,0.00027272,2]
[327964578,1716725445299,-150.0,0.00027283,2]
[327964579,1716725445309,-155.0,0.00027293,2]
[327964580,1716725445318,-150.0,0.00027293,2]
[327964581,1716725445328,-157076.3073,0.00027295,2]
[327964582,1716725445338,-19696.8417,0.00027295,2]
[327964583,1716725445524,-1000.0,0.00027295,2]
[327964584,1716725445545,-10000.0,0.00027297,2]
[327964585,1716725445554,-7500.0,0.00027297,2]
[327964586,1716725445564,-1000.0,0.00027297,2]
[327964587,1716725445573,-150.0,0.00027297,2]
[327964588,1716725445582,-318.65153039,0.00027297,2]
[327964589,1716725445591,-150.0,0.000273,5]
[327964590,1716725445600,-163.2,0.00027359,2]
[327964591,1716725445609,-2500.4944198,0.00027393,2]
[327964592,1716725445618,-195.02071198,0.00027395,2]
[327964593,1716725445627,-268.46014497,0.00027395,2]
[327964594,1716725445636,-1064.00561429,0.00027395,2]
[327964595,1716725445646,-10934.72962016,0.00027395,2]
[327964596,1716725445655,-155.0,0.00027395,2]
[327964597,1716725445666,-2223.86794373,0.00027395,7]
[327964598,1716725445675,-155.0,0.00027395,2]
[327964599,1716725445685,-81.78527519,0.00027397,2]
[327964600,1716725445954,-1217.00177674,0.00027293,2]
[327964601,1716725445965,-546.63346148,0.00027397,2]
[327964602,1716725445975,-786.80594987,0.00027397,2]
[327964603,1716725445987,-413.38342877,0.00027397,2]
[327964604,1716725445997,-529.6006328,0.00027397,2]
[327964605,1716725446009,-500.0,0.00027397,4]
[327964606,1716725446018,-500.0,0.00027397,4]
[327964607,1716725446027,-521.9531806,0.00027397,4]
[327964608,1716725446037,-679.19,0.00027397,4]
[327964609,1716725446047,-500.0,0.00027397,4]
[327964610,1716725446057,-500.0,0.00027397,4]
[327964611,1716725446066,-500.0,0.00027397,4]
[327964612,1716725446075,-500.0,0.00027397,4]
[327964613,1716725446085,-500.0,0.00027397,4]
[327964614,1716725446096,-500.0,0.00027397,4]
[327964615,1716725446105,-500.0,0.00027397,4]
[327964617,1716725446124,-500.0,0.00027397,4]
[327964618,1716725446136,-487.50475784,0.00027397,4]
[327964619,1716725446896,-1040.06495545,0.00014,2]
[327964620,1716725446907,-1650.96951915,0.00024277,2]
[327964621,1716725446918,-673.6142589,0.00024277,2]
[327964622,1716725447013,-3511.0566,0.00024277,2]
[327964801,1716726632358,-531.90844742,0.00011287,2]
[327964802,1716726632370,-112.4781735,0.00011287,2]
[327964803,1716726632378,-2537.1444139,0.00011386,2]
[327964804,1716726632506,-8833.11680192,0.00011386,2]
[327964805,1716726632516,-4267.78705205,0.00011387,2]
[327964806,1716726632528,-1528.35103245,0.00011387,2]
[327964810,1716726637712,-6924.72,0.00011385,2]
[327964811,1716726637727,-3611.06838722,0.00011385,2]
[327964812,1716726637737,-5574.12313131,0.00011387,2]
[327964813,1716726637748,-11370.26121581,0.00011387,2]
[327964814,1716726637760,-155.0,0.00011486,2]
[327964815,1716726637771,-452.30865792,0.00011486,2]
[327964816,1716726637782,-2504.244565,0.00011487,2]
[327964817,1716726637793,-533.94595566,0.0001181,2]
[327964818,1716726637803,-499.99,0.00011874,2]
[327964819,1716726637815,-553.56138036,0.00012999,2]
[327964820,1716726637825,-152.05,0.00013973,2]
[327964821,1716726637836,-169.75600714,0.00014,2]